fUST/lending_fUST_20250809
["ID","MTS","AMOUNT","RATE_DAILY","PERIOD"]
[378146635,1754748645000,-460.0,0.00022465,2]
[378146636,1754748645011,-460.0,0.00022465,2]
[378146637,1754748645022,-460.0,0.00022465,2]
[378146638,1754748645032,-396.29942411,0.00022465,2]
[378146639,1754748645042,-460.0,0.00022465,2]
[378146640,1754748645052,-460.0,0.00022465,2]
[378146641,1754748645063,-460.0,0.00022465,2]
[378146642,1754748645073,-551.4,0.00022465,2]
[378146643,1754748645083,-460.0,0.00022465,2]
[378146644,1754748645094,-460.0,0.00022465,2]
[378146645,1754748645105,-460.0,0.00022465,2]
[378146646,1754748645115,-460.0,0.00022465,2]
[378146647,1754748645125,-460.0,0.00022465,2]
[378146648,1754748645134,-460.0,0.00022465,2]
[378146649,1754748645147,-367.02677627,0.00022465,2]
[378146650,1754748645157,-460.0,0.00022465,2]
[378146651,1754748645167,-225.82892987,0.00022465,2]
[378146652,1754748645177,-460.0,0.00022465,2]
[378146653,1754748645188,-240.04217954,0.00022465,2]
[378146654,1754748645198,-460.0,0.00022465,2]
[378146655,1754748645208,-460.0,0.00022465,2]
[378146656,1754748645217,-477.3729841,0.00022465,2]
[378146657,1754748645228,-301.90443911,0.00022465,2]
[378146658,1754748645238,-460.0,0.00022465,2]
[378146659,1754748645248,-460.0,0.00022465,2]
[378146660,1754748645258,-460.0,0.00022465,2]
[378146661,1754748645268,-460.0,0.00022465,2]
[378146662,1754748645278,-460.0,0.00022465,2]
[378146663,1754748645288,-460.0,0.00022465,2]
[378146664,1754748645298,-460.0,0.00022465,2]
[378146665,1754748645308,-460.0,0.00022465,2]
[378146666,1754748645318,-460.0,0.00022465,2]
[378146667,1754748645330,-621.41,0.00022465,2]
[378146668,1754748645339,-460.0,0.00022465,2]
[378146669,1754748645349,-460.0,0.00022465,2]
[378146670,1754748645360,-460.0,0.00022465,2]
[378146671,1754748645370,-460.0,0.00022465,2]
[378146672,1754748645380,-460.0,0.00022465,2]
[378146673,1754748645390,-435.95517016,0.00022465,2]
[378146674,1754748645400,-460.0,0.00022465,2]
[378146675,1754748645410,-460.0,0.00022465,2]
[378146676,1754748645420,-460.0,0.00022465,2]
[378146677,1754748645430,-460.0,0.00022465,2]
[378146678,1754748645440,-460.0,0.00022465,2]
[378146679,1754748645450,-460.0,0.00022465,2]
[378146680,1754748645460,-460.0,0.00022465,2]
[378146681,1754748645470,-460.0,0.00022465,2]
[378146682,1754748645480,-460.0,0.00022465,2]
[378146683,1754748645490,-460.0,0.00022465,2]
[378146684,1754748645500,-460.0,0.00022465,2]
[378146685,1754748645510,-465.40132314,0.00022465,2]
[378146686,1754748645519,-460.0,0.00022465,2]
[378146687,1754748645530,-460.0,0.00022465,2]
[378146688,1754748645540,-582.97,0.00022465,2]
[378146689,1754748645550,-460.0,0.00022465,2]
[378146690,1754748645559,-460.0,0.00022465,2]
[378146691,1754748645569,-460.0,0.00022465,2]
[378146692,1754748645579,-460.0,0.00022465,2]
[378146694,1754748645588,-571.21,0.00022465,2]
[378146696,1754748645598,-460.0,0.00022465,2]
[378146697,1754748645608,-460.0,0.00022465,2]
[378146698,1754748645618,-460.0,0.00022465,2]
[378146699,1754748645628,-498.33,0.00022465,2]
[378146700,1754748645638,-460.0,0.00022465,2]
[378146701,1754748645649,-1223.18,0.00022465,2]
[378146702,1754748645658,-460.0,0.00022465,2]
[378146703,1754748645668,-460.0,0.00022465,2]
[378146704,1754748645678,-460.0,0.00022465,2]
[378146705,1754748645688,-770.27,0.00022465,2]
[378146706,1754748645698,-1508.97,0.00022465,2]
[378146707,1754748645708,-460.0,0.00022465,2]
[378146708,1754748645719,-460.0,0.00022465,2]
[378146709,1754748645728,-1391.84,0.00022465,2]
[378146710,1754748645738,-488.50395581,0.00022465,2]
[378146711,1754748645748,-460.0,0.00022465,2]
[378146712,1754748645758,-460.0,0.00022465,2]
[378146713,1754748645768,-460.0,0.00022465,2]
[378146714,1754748645778,-683.32,0.00022465,2]
[378146715,1754748645788,-460.0,0.00022465,2]
[378146716,1754748645798,-460.0,0.00022465,2]
[378146717,1754748645808,-672.0,0.00022465,2]
[378146718,1754748645819,-578.12163147,0.00022465,2]
[378146719,1754748645828,-460.0,0.00022465,2]
[378146720,1754748645838,-597.15,0.00022465,2]
[378146721,1754748645848,-460.0,0.00022465,2]
[378146722,1754748645858,-1026.28,0.00022465,2]
[378146724,1754748645869,-460.0,0.00022465,2]
[378146725,1754748645879,-460.0,0.00022465,2]
[378146726,1754748645889,-460.0,0.00022465,2]
[378146727,1754748645900,-1856.69,0.00022465,2]
[378146728,1754748645910,-460.0,0.00022465,2]
[378146729,1754748645919,-737.97,0.00022465,2]
[378146730,1754748645929,-1357.94,0.00022465,2]
[378146731,1754748645939,-460.0,0.00022465,2]
[378146732,1754748645949,-955.53,0.00022465,2]
[378146733,1754748645960,-460.0,0.00022465,2]
[378146734,1754748645973,-497.66,0.00022465,2]
[378146735,1754748645983,-4249.91,0.00022465,2]
[378146736,1754748645993,-460.0,0.00022465,2]
[378146737,1754748646003,-460.0,0.00022465,2]
[378146738,1754748646013,-564.5,0.00022465,2]
[378146739,1754748646023,-460.0,0.00022465,2]
[378146740,1754748646033,-460.0,0.00022465,2]
[378146741,1754748646052,-460.0,0.00022465,2]
[378146742,1754748646064,-580.98,0.00022465,2]
[378146743,1754748646075,-460.0,0.00022465,2]
[378146744,1754748646086,-293.80265538,0.00022465,2]
[378146745,1754748646097,-460.0,0.00022465,2]
[378146748,1754748646108,-460.0,0.00022465,2]
[378146750,1754748646119,-460.0,0.00022465,2]
[378146751,1754748646130,-466.54363822,0.00022465,2]
[378146752,1754748646140,-1320.85,0.00022465,2]
[378146753,1754748646151,-461.53,0.00022465,2]
[378146754,1754748646162,-1435.41,0.00022465,2]
[378146755,1754748646173,-464.99,0.00022465,2]
[378146756,1754748646185,-460.0,0.00022465,2]
[378146757,1754748646196,-808.74,0.00022465,2]
[378146758,1754748646209,-460.0,0.00022465,2]
[378146759,1754748646400,-460.0,0.00022465,2]
[378146760,1754748646410,-460.0,0.00022465,2]
[378146761,1754748646420,-460.0,0.00022465,2]
[378146762,1754748646430,-460.0,0.00022465,2]
[378146763,1754748646439,-460.0,0.00022465,2]
[378146764,1754748646449,-460.0,0.00022465,2]
[378146765,1754748646458,-460.0,0.00022465,2]
[378146766,1754748646467,-460.0,0.00022465,2]
[378146767,1754748646477,-460.0,0.00022465,2]
[378146768,1754748646486,-460.0,0.00022465,2]
[378146769,1754748646495,-473.23326017,0.00022465,2]
[378146770,1754748646504,-465.48733202,0.00022465,2]
[378146771,1754748646513,-460.0,0.00022465,2]
[378146772,1754748646523,-460.0,0.00022465,2]
[378146773,1754748646532,-727.55,0.00022465,2]
[378146774,1754748646542,-460.0,0.00022465,2]
[378146775,1754748646551,-460.0,0.00022465,2]
[378146776,1754748646560,-460.0,0.00022465,2]
[378146777,1754748646570,-460.0,0.00022465,2]
[378146778,1754748646578,-1103.85,0.00022465,2]
[378146779,1754748646588,-460.0,0.00022465,2]
[378146780,1754748646597,-460.0,0.00022465,2]
[378146781,1754748646609,-460.0,0.00022465,2]
[378146782,1754748646618,-460.0,0.00022465,2]
[378146783,1754748646626,-1025.43,0.00022465,2]
[378146784,1754748646635,-1117.08,0.00022465,2]
[378146785,1754748646644,-590.99528492,0.00022465,2]
[378146786,1754748646653,-324.62236031,0.00022465,2]
[378146787,1754748646662,-848.97,0.00022465,2]
[378146788,1754748646672,-460.0,0.00022465,2]
[378146789,1754748646681,-2301.23,0.00022465,2]
[378146790,1754748646690,-733.44,0.00022465,2]
[378146791,1754748646699,-460.0,0.00022465,2]
[378146792,1754748646708,-460.0,0.00022465,2]
[378146793,1754748646717,-460.0,0.00022465,2]
[378146794,1754748646727,-501.01,0.00022465,2]
[378146795,1754748646736,-500.0,0.00022473,2]
[378146796,1754748646745,-151.0,0.00022638,2]
[378146797,1754748646755,-160.0,0.00022647,2]
[378146798,1754748646764,-160.0,0.00022647,2]
[378146799,1754748646773,-461.55179734,0.00022647,2]
[378146800,1754748646782,-527.77735381,0.00022647,2]
[378146801,1754748646791,-216.61183532,0.00022647,2]
[378146802,1754748646800,-160.0,0.00022647,2]
[378146803,1754748646809,-842.95011917,0.00022647,2]
[378146804,1754748646818,-312.16666667,0.00022647,2]
[378146805,1754748646827,-160.0,0.00022647,2]
[378146806,1754748646837,-12666.14847857,0.00022647,2]
[378146807,1754748646847,-231.92402426,0.00022647,2]
[378146808,1754748646856,-1000.0,0.00022721,2]
[378146809,1754748646866,-1000.0,0.00022721,2]
[378146810,1754748646880,-1000.0,0.00022721,2]
[378146811,1754748646889,-1000.0,0.00022721,2]
[378146812,1754748646899,-277.656296,0.00022739,7]
[378146813,1754748646908,-161.776111,0.00022739,7]
[378146814,1754748646917,-161.776111,0.00022739,7]
[378146815,1754748646927,-159.126152,0.00022739,7]
[378146816,1754748646936,-159.126152,0.00022739,7]
[378146817,1754748646946,-460.0,0.00022739,2]
[378146818,1754748646957,-460.0,0.00022739,2]
[378146819,1754748646970,-460.0,0.00022739,2]
[378146820,1754748646979,-460.0,0.00022739,2]
[378146821,1754748646989,-460.0,0.00022739,2]
[378146822,1754748646998,-460.0,0.00022739,2]
[378146823,1754748647009,-460.0,0.00022739,2]
[378146824,1754748647019,-551.4,0.00022739,2]
[378146825,1754748647028,-460.0,0.00022739,2]
[378146826,1754748647039,-460.0,0.00022739,2]
[378146827,1754748647048,-460.0,0.00022739,2]
[378146828,1754748647058,-460.0,0.00022739,2]
[378146829,1754748647068,-460.0,0.00022739,2]
[378146830,1754748647078,-478.33011525,0.00022739,2]
[378146831,1754748647087,-460.0,0.00022739,2]
[378146832,1754748647096,-460.0,0.00022739,2]
[378146833,1754748647106,-460.0,0.00022739,2]
[378146834,1754748647115,-571.13,0.00022739,2]
[378146835,1754748647125,-460.0,0.00022739,2]
[378146836,1754748647135,-460.0,0.00022739,2]
[378146837,1754748647145,-460.0,0.00022739,2]
[378146838,1754748647154,-621.41,0.00022739,2]
[378146839,1754748647163,-460.0,0.00022739,2]
[378146840,1754748647173,-460.0,0.00022739,2]
[378146841,1754748647183,-460.0,0.00022739,2]
[378146842,1754748647193,-538.71538902,0.00022739,2]
[378146843,1754748647203,-460.0,0.00022739,2]
[378146844,1754748647213,-460.0,0.00022739,2]
[378146845,1754748647223,-460.0,0.00022739,2]
[378146846,1754748647234,-460.0,0.00022739,2]
[378146847,1754748647244,-460.0,0.00022739,2]
[378146848,1754748647254,-460.0,0.00022739,2]
[378146849,1754748647263,-581.40576508,0.00022739,2]
[378146850,1754748647274,-460.0,0.00022739,2]
[378146851,1754748647283,-460.0,0.00022739,2]
[378146852,1754748647293,-460.0,0.00022739,2]
[378146853,1754748647303,-582.97,0.00022739,2]
[378146854,1754748647313,-460.0,0.00022739,2]
[378146855,1754748647322,-460.0,0.00022739,2]
[378146856,1754748647331,-460.0,0.00022739,2]
[378146857,1754748647342,-460.0,0.00022739,2]
[378146858,1754748647352,-571.21,0.00022739,2]
[378146859,1754748647363,-460.0,0.00022739,2]
[378146860,1754748647372,-460.0,0.00022739,2]
[378146861,1754748647382,-460.0,0.00022739,2]
[378146862,1754748647391,-460.0,0.00022739,2]
[378146863,1754748647401,-1223.18,0.00022739,2]
[378146864,1754748647410,-460.0,0.00022739,2]
[378146865,1754748647420,-460.0,0.00022739,2]
[378146866,1754748647429,-770.27,0.00022739,2]
[378146867,1754748647438,-1508.97,0.00022739,2]
[378146868,1754748647448,-460.0,0.00022739,2]
[378146869,1754748647457,-1391.84,0.00022739,2]
[378146870,1754748647467,-460.0,0.00022739,2]
[378146871,1754748647477,-460.0,0.00022739,2]
[378146872,1754748647487,-460.0,0.00022739,2]
[378146873,1754748647496,-683.32,0.00022739,2]
[378146874,1754748647505,-460.0,0.00022739,2]
[378146875,1754748647515,-672.0,0.00022739,2]
[378146876,1754748647524,-460.0,0.00022739,2]
[378146877,1754748647534,-597.15,0.00022739,2]
[378146878,1754748647544,-460.0,0.00022739,2]
[378146879,1754748647553,-1026.28,0.00022739,2]
[378146880,1754748647563,-467.69078397,0.00022739,2]
[378146881,1754748647573,-460.0,0.00022739,2]
[378146882,1754748647583,-460.0,0.00022739,2]
[378146883,1754748647592,-1856.69,0.00022739,2]
[378146884,1754748647602,-460.0,0.00022739,2]
[378146885,1754748647612,-737.97,0.00022739,2]
[378146886,1754748647621,-1357.94,0.00022739,2]
[378146887,1754748647631,-460.0,0.00022739,2]
[378146888,1754748647640,-955.53,0.00022739,2]
[378146889,1754748647649,-460.0,0.00022739,2]
[378146890,1754748647659,-497.66,0.00022739,2]
[378146891,1754748647668,-4249.91,0.00022739,2]
[378146892,1754748647678,-460.0,0.00022739,2]
[378146893,1754748647687,-257.60219491,0.00022739,2]
[378146894,1754748647697,-564.5,0.00022739,2]
[378146895,1754748647706,-460.0,0.00022739,2]
[378146896,1754748647716,-460.0,0.00022739,2]
[378146897,1754748647725,-580.98,0.00022739,2]
[378146898,1754748647735,-460.0,0.00022739,2]
[378146899,1754748647745,-460.0,0.00022739,2]
[378146900,1754748647755,-460.0,0.00022739,2]
[378146901,1754748647764,-460.0,0.00022739,2]
[378146902,1754748647773,-1320.85,0.00022739,2]
[378146903,1754748647783,-1435.41,0.00022739,2]
[378146904,1754748647793,-464.99,0.00022739,2]
[378146905,1754748647802,-476.83307238,0.00022739,2]
[378146906,1754748647812,-808.74,0.00022739,2]
[378146907,1754748647822,-460.0,0.00022739,2]
[378146908,1754748647832,-460.0,0.00022739,2]
[378146909,1754748647841,-460.0,0.00022739,2]
[378146910,1754748647851,-460.0,0.00022739,2]
[378146911,1754748647862,-460.0,0.00022739,2]
[378146912,1754748647872,-460.0,0.00022739,2]
[378146913,1754748647882,-460.0,0.00022739,2]
[378146914,1754748647892,-460.0,0.00022739,2]
[378146915,1754748647903,-460.0,0.00022739,2]
[378146916,1754748647913,-460.0,0.00022739,2]
[378146917,1754748647924,-727.55,0.00022739,2]
[378146918,1754748647934,-460.0,0.00022739,2]
[378146919,1754748647944,-460.0,0.00022739,2]
[378146920,1754748647954,-460.0,0.00022739,2]
[378146921,1754748647968,-460.0,0.00022739,2]
[378146922,1754748647978,-1103.85,0.00022739,2]
[378146923,1754748647988,-460.0,0.00022739,2]
[378146924,1754748648000,-460.0,0.00022739,2]
[378146925,1754748648010,-460.0,0.00022739,2]
[378146926,1754748648020,-1025.43,0.00022739,2]
[378146927,1754748648031,-1117.08,0.00022739,2]
[378146928,1754748648043,-848.97,0.00022739,2]
[378146929,1754748648054,-460.0,0.00022739,2]
[378146930,1754748648064,-2301.23,0.00022739,2]
[378146931,1754748648074,-733.44,0.00022739,2]
[378146932,1754748648084,-213.2644599,0.00022739,2]
[378146933,1754748648094,-460.0,0.00022739,2]
[378146934,1754748648104,-151.0,0.00022912,2]
[378146935,1754748648114,-160.0,0.00023,2]
[378146936,1754748648123,-151.0,0.00023013,7]
[378146937,1754748648134,-460.0,0.00023013,2]
[378146938,1754748648143,-460.0,0.00023013,2]
[378146939,1754748648153,-460.0,0.00023013,2]
[378146940,1754748648163,-460.0,0.00023013,2]
[378146941,1754748648173,-460.0,0.00023013,2]
[378146942,1754748648183,-460.0,0.00023013,2]
[378146943,1754748648193,-510.58651523,0.00023013,2]
[378146944,1754748648202,-551.4,0.00023013,2]
[378146945,1754748648212,-460.0,0.00023013,2]
[378146946,1754748648222,-460.0,0.00023013,2]
[378146947,1754748648232,-460.0,0.00023013,2]
[378146948,1754748648242,-460.0,0.00023013,2]
[378146949,1754748648251,-460.0,0.00023013,2]
[378146950,1754748648261,-466.0465682,0.00023013,2]
[378146951,1754748648271,-391.16315626,0.00023013,2]
[378146952,1754748648281,-460.0,0.00023013,2]
[378146953,1754748648290,-460.0,0.00023013,2]
[378146954,1754748648301,-460.0,0.00023013,2]
[378146955,1754748648310,-460.0,0.00023013,2]
[378146956,1754748648320,-621.41,0.00023013,2]
[378146957,1754748648329,-460.0,0.00023013,2]
[378146958,1754748648340,-460.0,0.00023013,2]
[378146959,1754748648350,-460.0,0.00023013,2]
[378146960,1754748648361,-460.0,0.00023013,2]
[378146961,1754748648371,-460.0,0.00023013,2]
[378146962,1754748648381,-460.0,0.00023013,2]
[378146963,1754748648390,-460.0,0.00023013,2]
[378146964,1754748648399,-460.0,0.00023013,2]
[378146965,1754748648408,-460.0,0.00023013,2]
[378146966,1754748648418,-460.0,0.00023013,2]
[378146967,1754748648427,-460.0,0.00023013,2]
[378146968,1754748648437,-582.97,0.00023013,2]
[378146969,1754748648446,-460.0,0.00023013,2]
[378146970,1754748648455,-496.69664594,0.00023013,2]
[378146971,1754748648465,-353.12023048,0.00023013,2]
[378146972,1754748648475,-460.0,0.00023013,2]
[378146973,1754748648485,-571.21,0.00023013,2]
[378146974,1754748648495,-460.0,0.00023013,2]
[378146975,1754748648504,-460.0,0.00023013,2]
[378146976,1754748648514,-460.0,0.00023013,2]
[378146977,1754748648523,-460.0,0.00023013,2]
[378146978,1754748648533,-1223.18,0.00023013,2]
[378146979,1754748648542,-460.0,0.00023013,2]
[378146980,1754748648552,-460.0,0.00023013,2]
[378146981,1754748648563,-770.27,0.00023013,2]
[378146982,1754748648572,-1508.97,0.00023013,2]
[378146983,1754748648583,-443.34552237,0.00023013,2]
[378146984,1754748648593,-1391.84,0.00023013,2]
[378146985,1754748648602,-460.0,0.00023013,2]
[378146986,1754748648613,-460.0,0.00023013,2]
[378146987,1754748648623,-460.0,0.00023013,2]
[378146988,1754748648632,-683.32,0.00023013,2]
[378146989,1754748648641,-672.0,0.00023013,2]
[378146990,1754748648651,-460.0,0.00023013,2]
[378146991,1754748648660,-597.15,0.00023013,2]
[378146992,1754748648669,-458.91,0.00023013,2]
[378146993,1754748648679,-1026.28,0.00023013,2]
[378146994,1754748648688,-460.0,0.00023013,2]
[378146995,1754748648697,-460.0,0.00023013,2]
[378146996,1754748648707,-1856.69,0.00023013,2]
[378146997,1754748648716,-737.97,0.00023013,2]
[378146998,1754748648725,-1357.94,0.00023013,2]
[378146999,1754748648735,-460.0,0.00023013,2]
[378147000,1754748648744,-955.53,0.00023013,2]
[378147001,1754748648753,-460.0,0.00023013,2]
[378147002,1754748648762,-497.66,0.00023013,2]
[378147003,1754748648771,-4249.91,0.00023013,2]
[378147004,1754748648780,-460.0,0.00023013,2]
[378147005,1754748648790,-564.5,0.00023013,2]
[378147006,1754748648800,-460.0,0.00023013,2]
[378147007,1754748648809,-580.98,0.00023013,2]
[378147008,1754748648819,-460.0,0.00023013,2]
[378147009,1754748648829,-224.37148239,0.00023013,2]
[378147010,1754748648839,-460.0,0.00023013,2]
[378147011,1754748648848,-460.0,0.00023013,2]
[378147012,1754748648858,-1320.85,0.00023013,2]
[378147013,1754748648867,-1435.41,0.00023013,2]
[378147014,1754748648876,-464.99,0.00023013,2]
[378147015,1754748648886,-808.74,0.00023013,2]
[378147016,1754748648895,-460.0,0.00023013,2]
[378147017,1754748648905,-460.0,0.00023013,2]
[378147018,1754748648915,-429.75,0.00023013,2]
[378147019,1754748648925,-460.0,0.00023013,2]
[378147020,1754748648934,-460.0,0.00023013,2]
[378147021,1754748648944,-460.0,0.00023013,2]
[378147022,1754748648954,-460.0,0.00023013,2]
[378147023,1754748648967,-460.0,0.00023013,2]
[378147024,1754748648976,-460.0,0.00023013,2]
[378147025,1754748648986,-727.55,0.00023013,2]
[378147026,1754748648995,-460.0,0.00023013,2]
[378147027,1754748649006,-460.0,0.00023013,2]
[378147028,1754748649015,-460.0,0.00023013,2]
[378147029,1754748649025,-1103.85,0.00023013,2]
[378147030,1754748649035,-460.0,0.00023013,2]
[378147031,1754748649045,-460.0,0.00023013,2]
[378147032,1754748649054,-460.0,0.00023013,2]
[378147033,1754748649063,-1025.43,0.00023013,2]
[378147034,1754748649073,-1117.08,0.00023013,2]
[378147035,1754748649083,-848.97,0.00023013,2]
[378147036,1754748649093,-460.0,0.00023013,2]
[378147037,1754748649102,-2301.23,0.00023013,2]
[378147038,1754748649112,-733.44,0.00023013,2]
[378147039,1754748649121,-460.0,0.00023013,2]
[378147040,1754748649131,-1705.21475514,0.00023017,2]
[378147041,1754748649141,-151.0,0.00023186,2]
[378147042,1754748649150,-533.56,0.00023199,2]
[378147043,1754748649159,-494.54453677,0.00023234,2]
[378147044,1754748649168,-528.95677806,0.00023268,2]
[378147045,1754748649178,-1500.0,0.00023268,2]
[378147046,1754748649187,-1500.0,0.00023268,2]
[378147047,1754748649196,-161.776111,0.00023287,7]
[378147048,1754748649206,-161.776111,0.00023287,7]
[378147049,1754748649216,-159.126152,0.00023287,7]
[378147050,1754748649225,-159.126152,0.00023287,7]
[378147051,1754748649235,-580.16894444,0.00023287,2]
[378147052,1754748649245,-509.95,0.00023287,2]
[378147053,1754748649255,-460.0,0.00023287,2]
[378147054,1754748649264,-460.0,0.00023287,2]
[378147055,1754748649274,-460.0,0.00023287,2]
[378147056,1754748649283,-551.4,0.00023287,2]
[378147057,1754748649295,-460.0,0.00023287,2]
[378147058,1754748649312,-571.80308689,0.00023287,2]
[378147059,1754748649324,-460.0,0.00023287,2]
[378147060,1754748649334,-460.0,0.00023287,2]
[378147061,1754748649343,-460.0,0.00023287,2]
[378147062,1754748649353,-460.0,0.00023287,2]
[378147063,1754748649363,-460.0,0.00023287,2]
[378147064,1754748649372,-460.0,0.00023287,2]
[378147065,1754748649381,-460.0,0.00023287,2]
[378147066,1754748649391,-621.41,0.00023287,2]
[378147067,1754748649400,-460.0,0.00023287,2]
[378147068,1754748649523,-460.0,0.00023287,2]
[378147069,1754748649534,-460.0,0.00023287,2]
[378147070,1754748649544,-460.0,0.00023287,2]
[378147071,1754748649553,-460.0,0.00023287,2]
[378147072,1754748649563,-460.0,0.00023287,2]
[378147073,1754748649572,-460.0,0.00023287,2]
[378147074,1754748649582,-460.0,0.00023287,2]
[378147075,1754748649591,-460.0,0.00023287,2]
[378147076,1754748649601,-582.97,0.00023287,2]
[378147077,1754748649611,-460.0,0.00023287,2]
[378147078,1754748649620,-571.21,0.00023287,2]
[378147079,1754748649630,-460.0,0.00023287,2]
[378147080,1754748649641,-460.0,0.00023287,2]
[378147081,1754748649651,-460.0,0.00023287,2]
[378147082,1754748649661,-1223.18,0.00023287,2]
[378147083,1754748649670,-460.0,0.00023287,2]
[378147084,1754748649679,-460.0,0.00023287,2]
[378147085,1754748649689,-770.27,0.00023287,2]
[378147086,1754748649698,-1508.97,0.00023287,2]
[378147087,1754748649708,-1391.84,0.00023287,2]
[378147088,1754748649718,-460.0,0.00023287,2]
[378147089,1754748649727,-326.77805351,0.00023287,2]
[378147090,1754748649736,-460.0,0.00023287,2]
[378147091,1754748649746,-683.32,0.00023287,2]
[378147092,1754748649755,-672.0,0.00023287,2]
[378147093,1754748649765,-460.0,0.00023287,2]
[378147094,1754748649774,-597.15,0.00023287,2]
[378147095,1754748649784,-1026.28,0.00023287,2]
[378147096,1754748649793,-460.0,0.00023287,2]
[378147097,1754748649803,-1856.69,0.00023287,2]
[378147098,1754748649813,-737.97,0.00023287,2]
[378147099,1754748649822,-1357.94,0.00023287,2]
[378147100,1754748649831,-333.04850002,0.00023287,2]
[378147101,1754748649841,-955.53,0.00023287,2]
[378147102,1754748649850,-460.0,0.00023287,2]
[378147103,1754748649860,-497.66,0.00023287,2]
[378147104,1754748649869,-4249.91,0.00023287,2]
[378147105,1754748649879,-460.0,0.00023287,2]
[378147106,1754748649888,-564.5,0.00023287,2]
[378147107,1754748649897,-460.0,0.00023287,2]
[378147108,1754748649906,-580.98,0.00023287,2]
[378147109,1754748649916,-460.0,0.00023287,2]
[378147110,1754748649925,-460.0,0.00023287,2]
[378147111,1754748649935,-460.0,0.00023287,2]
[378147112,1754748649944,-1320.85,0.00023287,2]
[378147113,1754748649953,-1435.41,0.00023287,2]
[378147114,1754748649964,-464.99,0.00023287,2]
[378147115,1754748649974,-460.0,0.00023287,2]
[378147116,1754748649983,-808.74,0.00023287,2]
[378147117,1754748649992,-460.0,0.00023287,2]
[378147118,1754748650003,-460.0,0.00023287,2]
[378147119,1754748650012,-460.0,0.00023287,2]
[378147120,1754748650021,-460.0,0.00023287,2]
[378147121,1754748650031,-460.0,0.00023287,2]
[378147122,1754748650041,-460.0,0.00023287,2]
[378147123,1754748650050,-460.0,0.00023287,2]
[378147124,1754748650059,-727.55,0.00023287,2]
[378147125,1754748650069,-460.0,0.00023287,2]
[378147126,1754748650078,-460.0,0.00023287,2]
[378147127,1754748650087,-243.38921214,0.00023287,2]
[378147128,1754748650096,-1103.85,0.00023287,2]
[378147129,1754748650106,-460.0,0.00023287,2]
[378147130,1754748650115,-460.0,0.00023287,2]
[378147131,1754748650124,-1025.43,0.00023287,2]
[378147132,1754748650134,-1117.08,0.00023287,2]
[378147133,1754748650143,-848.97,0.00023287,2]
[378147134,1754748650153,-460.0,0.00023287,2]
[378147135,1754748650163,-2301.23,0.00023287,2]
[378147136,1754748650172,-733.44,0.00023287,2]
[378147137,1754748650182,-460.0,0.00023287,2]
[378147138,1754748650191,-500.0,0.00023288,2]
[378147139,1754748650200,-151.0,0.00023288,7]
[378147140,1754748650210,-500.0,0.00023288,2]